Workbook

Sheet P&G.
A1: Capricon District Municipality
A2: KROMHOEK (MAKGATHO) DEVREDE TAAIBOSCH NEW STANDS (CONTRACT B) WATER SUPPLY
A3: SCHEDULE 1 - PRELIMINARY AND GENERAL
A5: ITEM | B5: PAYMENT | C5: DESCRIPTION | D5: UNIT | E5: QUANTITY | F5: RATE | G5: AMOUNT
A6: NO. | B6: REFER.
B8: SABS | C8: GENERAL
B9: 1200A
A10: A.1 | B10: 8.3 | C10: Fixed Charges and Value Related Items
A12: 1.1 | C12: Contractual Requirements
A14: 1.1.1 | B14: 8.3.1 | C14: Fixed charge contractual requirements. | D14: Sum | E14: 1
A16: 1.1.2 | B16: 8.3.1 | C16: Value related contractual requirements. | D16: Sum | E16: 1
A18: 1.1.2 | B18: 8.3.2 | C18: Provision of Facilities on the Site
B20: 8.3.2.1 | C20: FACILITIES FOR ENGINEER
C22: a) Office as per PSAB2 | D22: Sum | E22: 1
C24: b) Sanitary | D24: Sum | E24: 1
C26: c) Provission of the Lap top for the use of the Engineer | D26: P Sum | E26: 1
C28: d) Handling cost and profit in respect of item © | D28: %
A30: 1.1.2.1 | B30: 8.3.2.2 | C30: FACILITIES FOR CONTRACTOR
C32: a) Offices, stores, workshops | D32: Sum | E32: 1
C34: b) Housing for staff | D34: Sum | E34: 1
C36: c) Toilets and ablutions | D36: Sum | E36: 1
C38: d) Fencing off site of construction camp | D38: Sum | E38: 1
C40: e) Provision of water, power and communication facilities | D40: Sum | E40: 1
C42: f) Tools and equipment | D42: Sum | E42: 1
A44: 1.1.2.2 | B44: 8.3.4 | C44: Removal of site establishment | D44: Sum | E44: 1
A51: TOTAL CARRIED FORWARD
A52: =+A$1 -> Capricon District Municipality
A53: =+A$2 -> KROMHOEK (MAKGATHO) DEVREDE TAAIBOSCH NEW STANDS (CONTRACT B) WATER SUPPLY
A54: =+A$3 -> SCHEDULE 1 - PRELIMINARY AND GENERAL
A56: ITEM | B56: PAYMENT | C56: DESCRIPTION | D56: UNIT | E56: QUANTITY | F56: RATE | G56: AMOUNT
A57: NO. | B57: REFER.
A58: Brought Forward
B59: SABS
B60: 1200A
B61: 8.4 | C61: Time related Costs to be paid monthly
A62: 1.2.2 | B62: 8.4.1 | C62: Operation and Maintenance of Facilities on Site
B63: 8.4.2.1 | C63: FACILITIES FOR ENGINEER
C64: a) One furnished office | D64: month | E64: 10
B66: PSAB5.1 | C66: b) Provisional sum for the costs of cellular calls, fax
C67: and other charges | D67: month | E67: 10
B69: PSAB5.1 | C69: c) Survey Equipment | D69: month | E69: 10
C71: d) Provision of Computers, printing & photostat facilities | D71: month | E71: 10
B73: PSAB5.1 | C73: e) Overheads, charges and profit on b, c and d | D73: %
C75: FACILITIES FOR THE CONTRACTOR
C76: a) Office for Contractor | D76: month | E76: 10
C78: b) Housing of staff | D78: month | E78: 10
C80: c) Toilets and ablution | D80: month | E80: 10
C82: d) Provision of water, power and communication | D82: month | E82: 10
C83: facilities
C85: e) Tools and equipment | D85: month | E85: 10
A87: 1.2.3 | B87: 8.4.3 | C87: Supervision for duration of construction
A88: 1.2.3.1 | C88: Contractors supervision and management | D88: P Sum | E88: 10 | F88: R45,000.00 | G88: =E88*F88 -> R 450,000.00
C90: Handling cost and profit in respect of item 1.2.3.1 | D90: % | E90: =G88 -> R450,000.00
B92: 8.4.4 | C92: Company and head office overhead costs | D92: month | E92: =+E88 -> 10
A94: 1.3 | C94: NAMEBOARD
C95: Supply and install construction nameboard as per
C96: detail drawing | D96: No. | E96: 1.00
A98: 1.4 | C98: PROVISIONAL SUMS:
A100: 1.4.1 | B100: 8.5 b | C100: Community Liaison Officer:
A102: 1.4.1.1 | B102: PSA 14.5 a | C102: Provision for employment of CLO. | D102: P Sum | E102: 1.00 | F102: R60,000.00 | G102: =F102 -> R 60,000.00
A104: 1.4.1.2 | B104: PSA 14.5 b | C104: Handling cost and profit in respect of item 1.4.1.1 | D104: % | E104: =F102 -> R60,000.00
A106: 1.4.2 | B106: 8.5 b | C106: PSC Attendance at Site Meeting:
A108: 1.4.2.1 | B108: PSA 14.5 c | C108: Provision for the attendance of PSC members | D108: P Sum | E108: 1.00 | F108: R16,000.00 | G108: =F108 -> R 16,000.00
A110: 1.4.2.2 | B110: PSA 14.5 d | C110: Handling cost and profit in respect of item 1.4.2.1 | D110: % | E110: =F108 -> R16,000.00
A112: 1.5 | B112: 8.5 b | C112: Additional Tests required by Engineer:
A114: 1.5.1 | B114: PSA 14.5 e | C114: Provision for additional tests. | D114: P Sum | E114: 1.00 | F114: R50,000.00 | G114: =F114 -> R 50,000.00
A116: 1.5.2 | B116: PSA 14.5 f | C116: Handling cost and profit in respect of item 1.5.1 | D116: % | E116: R 50,000.00
A120: TOTAL SCHEDULE 1 CARRIED FORWARD
A122: =+A$1 -> Capricon District Municipality
A123: =+A$2 -> KROMHOEK (MAKGATHO) DEVREDE TAAIBOSCH NEW STANDS (CONTRACT B) WATER SUPPLY
A124: =+A$3 -> SCHEDULE 1 - PRELIMINARY AND GENERAL
A126: ITEM | B126: PAYMENT | C126: DESCRIPTION | D126: UNIT | E126: QUANTITY | F126: RATE | G126: AMOUNT
A127: NO. | B127: REFER.
A128: Brought Forward
A129: 1.6 | B129: PSA6.3 | C129: Occupational Health & safety
C130: Provision for the cost of the Occupational Health &
C131: Safety Act, 85 of 1993, and the relevant regulations:
C133: a) Preparation of Health & Safety Plan | D133: Sum | E133: 1
C135: b) Health and Safety Officer | D135: Sum | E135: 1
C137: c) Health & safety induction training of employees | D137: Sum | E137: 1
C139: d) Compilation and keeping up with date the Health &
C140: Safety file which shall include all documentation
C141: required in terms of the Act. | D141: sum | E141: 1
A180: TOTAL SCHEDULE 1 CARRIED FORWARD
A182: =+A$1 -> Capricon District Municipality
A183: =+A$2 -> KROMHOEK (MAKGATHO) DEVREDE TAAIBOSCH NEW STANDS (CONTRACT B) WATER SUPPLY
A184: =+A$3 -> SCHEDULE 1 - PRELIMINARY AND GENERAL
A186: ITEM | B186: PAYMENT | C186: DESCRIPTION | D186: UNIT | E186: QUANTITY | F186: RATE | G186: AMOUNT
A187: NO. | B187: REFER.
A188: Brought Forward
A189: 1.7 | C189: DAYWORK:
C190: (As specified in SABS 1200 A and the Project Specifications.)
A193: 1.7 | B193: 8.7 | C193: Labour - Normal Working Hours: [Provisional]
A195: 1.7.1 | C195: Skilled Labour (Artisan). | D195: hr | G195: Rate Only
A197: 1.7.2 | C197: Semi-skilled Labour. | D197: hr | G197: Rate Only
A199: 1.7.3 | C199: Unskilled Labour. | D199: hr | G199: Rate Only
A201: 1.7.4 | C201: Foreman. | D201: hr | G201: Rate Only
A204: 1.8 | B204: 8.7 | C204: Plant - Heavy Equipment
C205: (Plant shall not be more than 3 years old or have more than
C206: 3000 hrs logged. Operator to be qualified and competency
C207: certified).
A209: 1.8.1 | C209: Excavator - Size CAT 225 | D209: hr | G209: Rate Only
A211: 1.8.1 | C211: Excavator - TLB. | D211: hr | G211: Rate Only
A213: 1.8.2 | C213: Grader 140G or similar. | D213: hr | G213: Rate Only
A215: 1.8.3 | C215: Front end loader - bucket capacity ≤ 1.5 m3. | D215: hr | G215: Rate Only
A217: 1.8.4 | C217: Front end loader - bucket capacity > 1.5 m3. | D217: hr | G217: Rate Only
A219: 1.8.5 | C219: Tip truck - 5 m3 capacity | D219: hr | G219: Rate Only
A221: 1.8.6 | C221: Tip truck - 10 m3 capacity | D221: hr | G221: Rate Only
A223: 1.8.7 | C223: Vibratory compactor roller - 13.5 ton | D223: hr | G223: Rate Only
A225: 1.8.8 | C225: Transport cost per any unit of plant to deliver to site and | D225: Sum | G225: Rate Only
C226: remove from site for items 1.8.1 to 1.8.7
A228: 1.9 | B228: 8.7 | C228: Plant - Small Equipment [Provisional]
A230: 1.9.1 | C230: Pedestrain roller - BW90 or similar. | D230: hr | G230: Rate Only
A232: 1.9.2 | C232: Vibratory plate compactor. | D232: hr | G232: Rate Only
A234: 1.9.3 | C234: Vibratory rammer. | D234: hr | G234: Rate Only
A236: 1.9.4 | C236: Transport cost per any unit of plant to deliver to site and | D236: Sum | G236: Rate Only
C237: remove from site for items 1.9.1 to 1.9.3
A240: TOTAL SCHEDULE 1 CARRIED FORWARD TO SUMMARY

Sheet P&G (hidden)
A1: Capricon District Municipality
A2: KROMHOEK (MAKGATHO) DEVREDE TAAIBOSCH NEW STANDS (CONTRACT B) WATER SUPPLY
A3: SCHEDULE 1 - PRELIMINARY AND GENERAL
A5: ITEM | B5: PAYMENT | C5: DESCRIPTION | D5: UNIT | E5: QUANTITY | F5: RATE | G5: AMOUNT
A6: NO. | B6: REFER.
B8: SABS | C8: GENERAL
B9: 1200A
A10: 1.1 | B10: 8.3 | C10: Fixed Charges and Value Related Items
A12: 1.1.1 | B12: 8.3.1 | C12: Contractual Requirements
C14: a) Providing Sureties as per General Conditions of | D14: Sum | E14: 1
C15: Contract Clause 7
C17: b) Insurance of works as per General Conditions of | D17: Sum | E17: 1
C18: Contract Clause 35
C20: c) Damage to Persons and Property as per as per | D20: Sum | E20: 1
C21: General Conditions of Contract Clause 33 (1)
C23: d) Third Party Insurance as per General Conditions of
C24: Contract Clause 35 | D24: Sum | E24: 1 | I24: =SUM(F14:F24) -> 0
A26: 1.1.2 | B26: 8.3.2 | C26: Provision of Facilities on the Site
B28: 8.3.2.1 | C28: FACILITIES FOR ENGINEER
C30: a) Office as per PSAB2 | D30: Sum | E30: 1
C32: b) Sanitary | D32: Sum | E32: 1
C34: c) Provission of the Lap top for the use of the Engineer | D34: P Sum | E34: 1
C36: d) Handling cost and profit in respect of item © | D36: %
A38: 1.1.2.1 | B38: 8.3.2.2 | C38: FACILITIES FOR CONTRACTOR
C40: a) Offices, stores, workshops | D40: Sum | E40: 1
C42: b) Housing for staff | D42: Sum | E42: =+E40 -> 1
C44: c) Toilets and ablutions | D44: Sum | E44: =+E42 -> 1
C46: d) Fencing off site of construction camp | D46: Sum | E46: =+E44 -> 1
C48: e) Provision of water, power and communication facilities | D48: Sum | E48: =+E46 -> 1
C50: f) Tools and equipment | D50: Sum | E50: =+E42 -> 1
A52: 1.1.2.2 | B52: 8.3.4 | C52: Removal of site establishment | D52: Sum | E52: =+E44 -> 1
A59: TOTAL CARRIED FORWARD
A60: =+A$1 -> Capricon District Municipality
A61: =+A$2 -> KROMHOEK (MAKGATHO) DEVREDE TAAIBOSCH NEW STANDS (CONTRACT B) WATER SUPPLY
A62: =+A$3 -> SCHEDULE 1 - PRELIMINARY AND GENERAL
A64: ITEM | B64: PAYMENT | C64: DESCRIPTION | D64: UNIT | E64: QUANTITY | F64: RATE | G64: AMOUNT
A65: NO. | B65: REFER.
A66: Brought Forward
B67: SABS
B68: 1200A
B69: 8.4 | C69: Time related Costs to be paid monthly
A70: 1.2.2 | B70: 8.4.1 | C70: Operation and Maintenance of Facilities on Site
B71: 8.4.2.1 | C71: FACILITIES FOR ENGINEER
C72: a) One furnished office | D72: month | E72: 10
B74: PSAB5.1 | C74: b) Provisional sum for the costs of cellular calls, fax
C75: and other charges | D75: month | E75: 10
B77: PSAB5.1 | C77: c) Survey Equipment | D77: month | E77: 10
C79: d) Provision of Computers, printing & photostat facilities | D79: month | E79: 10
B81: PSAB5.1 | C81: e) Overheads, charges and profit on b, c and d | D81: %
C83: FACILITIES FOR THE CONTRACTOR
C84: a) Office for Contractor | D84: month | E84: 10
C86: b) Housing of staff | D86: month | E86: 10
C88: c) Toilets and ablution | D88: month | E88: 10
C90: d) Provision of water, power and communication | D90: month | E90: 10
C91: facilities
C93: e) Tools and equipment | D93: month | E93: 10
A95: 1.2.3 | B95: 8.4.3 | C95: Supervision for duration of construction
A96: 1.2.3.1 | C96: Contractors supervision and management | D96: P Sum | E96: 10
C98: Handling cost and profit in respect of item 1.2.3.1 | D98: %
B100: 8.4.4 | C100: Company and head office overhead costs | D100: month | E100: =+E96 -> 10
A102: 1.3 | C102: NAMEBOARD
C103: Supply and install construction nameboard as per
C104: detail drawing | D104: No. | E104: 1.00
A106: 1.4 | B106: PS A 8.5 (b) 1 | C106: TRAINING
A107: 1.4.1 | C107: Provision for accredited training
C108: a) Generic & Entrepreneurial skills | D108: P Sum | E108: 1.00
C109: b) Technical skills | D109: P Sum | E109: 1.00
A111: 1.4.2 | C111: Community Liaison Officer | D111: P Sum | E111: 1.00
A113: 1.4.3 | C113: Handling cost and profit in respect of item 1.4.1 and 1.4.2 | D113: %
A115: 1.5 | B115: PS L 7.3.1 | C115: Test pressure of pipe line by nominated sub-contractor | D115: P Sum | E115: 1.00
C117: Handling cost and profit in respect of item 1.5 | D117: %
A121: TOTAL SCHEDULE 1 CARRIED FORWARD TO SUMMARY
A123: =+A$1 -> Capricon District Municipality
A124: =+A$2 -> KROMHOEK (MAKGATHO) DEVREDE TAAIBOSCH NEW STANDS (CONTRACT B) WATER SUPPLY
A125: =+A$3 -> SCHEDULE 1 - PRELIMINARY AND GENERAL
A127: ITEM | B127: PAYMENT | C127: DESCRIPTION | D127: UNIT | E127: QUANTITY | F127: RATE | G127: AMOUNT
A128: NO. | B128: REFER.
A129: Brought Forward
A130: 1.6 | B130: PSA6.3 | C130: Occupational Health & safety
C131: Provision for the cost of the Occupational Health &
C132: Safety Act, 85 of 1993, and the relevant regulations:
C134: a) Preparation of Health & Safety Plan | D134: Sum | E134: 1
C136: b) Health and Safety Officer | D136: P Sum | E136: 1
C138: c) Allow Handling cost and profit in respect of item 1.2.3.1 | D138: %
C140: d) Health & safety induction training of employees | D140: Sum | E140: 1
C142: e) Compilation and keeping up with date the Health &
C143: Safety file which shall include all documentation
C144: required in terms of the Act. | D144: sum | E144: 1
A183: TOTAL SCHEDULE 1 CARRIED FORWARD TO SUMMARY

Sheet RETICULATION
A1: ='P&G'!A1 -> Capricon District Municipality
A2: ='P&G'!A2 -> KROMHOEK (MAKGATHO) DEVREDE TAAIBOSCH NEW STANDS (CONTRACT B) WATER SUPPLY
A3: SCHEDULE 2 : RETICULATION | K3: Diameter | L3: 0.0 - 1.0 | M3: 1.0 - 2.0
K4: 75 | L4: 48 | M4: 14,786 | N4: =M4 -> 14,786
A5: ITEM | B5: PAYMENT | C5: DESCRIPTION | E5: UNIT | F5: QUANTITY | G5: RATE | H5: AMOUNT | K5: 90 | L5: 30 | M5: 20,420 | N5: =M5-15000 -> 5,420
A6: NO. | B6: REFER. | K6: 110 | L6: 148 | M6: 7,939 | N6: =M6-1798 -> 6,141
K7: 160 | L7: 0 | M7: 6,142 | N7: =M7-2800 -> 3,342
A8: 2.1.1 | B8: SABS | C8: SITE CLEARANCE | K8: 200 | L8: 0 | M8: 3,359 | N8: =M8 -> 3,359
A9: 2.1.1.1 | B9: 1200C | C9: a) | D9: Clear vegetation and trees of girth up to 1m | K9: 250 | M9: 77.54 | N9: 78
D10: (2m Wide on pipeline route) | E10: m | F10: =CEILING((O10*0.7),5) -> 23,295 | K10: Total | L10: =SUM(L4:L8) -> 227 | M10: =SUM(M4:M8) -> 52,645 | N10: =SUM(N4:N8) -> 33,047 | O10: =L10+N10 -> 33,274
C12: b) | D12: Remove and grub all shrubs (all girth) | E12: ha | F12: 10 | K12: EXCAVATION VOLUMES
K13: Diameter | L13: 0.0 - 1.0 | M13: 1.0 - 2.0
A14: 2.1.2 | B14: 1200DB | C14: EXCAVATION | K14: 75 | L14: 74 | M14: 14,712 | N14: =N4/M4 -> 100% | O14: =M14*N14 -> 14,712
A15: 2.1.2.1 | B15: 8,3,2 | C15: Excavation in all materials for trenches for 200mm | K15: 90 | L15: 66 | M15: 20,355 | N15: =N5/M5 -> 27% | O15: =M15*N15 -> 5,403
C16: nominal diameter pipes and smaller. Rates to include | K16: 110 | L16: 23 | M16: 7,916 | N16: 77% | O16: 6,123
C17: backfill, compact and dispose of surplus material | K17: 160 | L17: 2 | M17: 6,140 | N17: 54% | O17: 3,341
C18: a) | D18: Up to 1,5m deep (700 mm wide) | E18: m | F18: =CEILING(O10,5) -> 33,275 | K18: 200 | L18: 1 | M18: 3,358 | N18: 100% | O18: 3,358
K19: 250 | L19: 0 | M19: 77.54 | N19: 100% | O19: 78
A20: 2.1.2.2 | B20: 8.3.2 | C20: Extra-over item 3.1.2.1 for | K20: Total | L20: =SUM(L14:L19) -> 165 | M20: =SUM(M14:M19) -> 52,558 | N20: =AVERAGE(N14:N19) -> 76% | O20: =CEILING(SUM(O14:O19),5) -> 33,015
C21: a) | D21: Intermediate excavation | E21: m³ | F21: =CEILING(0.15*O26,5) -> 4,675
K22: BEDDING VOLUMES
C23: b) | D23: Hard rock excavation | E23: m³ | F23: =CEILING(0.1*O26,5) -> 3,115 | K23: Bedding Class | L23: Bedding Material | M23: Selected Backfill | N23: Main Fill
K24: Flexibile | L24: 10,859 | M24: 7,426 | N24: 22,483 | O24: =CEILING(SUM(L24:N24),5) -> 40,770
A25: 2.1.2.3 | B25: 8.3.3.c | C25: Excavate and dispose of unsuitable material from | L25: =CEILING(N20*L24,5) -> 8,295 | M25: =CEILING(N20*M24,5) -> 5,675 | N25: =CEILING(N20*N24,5) -> 17,175 | O25: =CEILING(N20*O24,5) -> 31,145
C26: trench bottom | E26: m³ | F26: 500 | O26: =SUM(L25:N25) -> 31,145
A28: 2.1.2.4 | B28: 8.3.3.1 | C28: Import backfill material from designated borrow
C29: pits | E29: m³ | F29: 5,000
A31: 2.1.2.5 | B31: 8.3.3.2 | C31: Opening up and closing down of designated
C32: borrow pit | E32: Prov Sum | F32: 1
A34: 2.1.2.6 | B34: 8.3.3.3 | C34: EO for compaction in road reserve | E34: m³ | F34: 1,200.00
A36: 2.1.2.7 | B36: 8.3.3.4 | C36: Overhaul
C37: a) | D37: Limited overhaul (0,5 to 1,0km) | E37: m³ | F37: =F29*1 -> 5,000
C39: b) | D39: Long overhaul | E39: m³.km | F39: 12,000
A41: 2.1.2.8 | B41: 8.3.5 | C41: Existing Services
C42: a) | D42: Excavate and expose of existing services | E42: m³ | F42: 50
C44: b) | D44: Services that adjoin a trench | E44: m | F44: 450
C46: c) | D46: Services that intersect a trench | E46: No | F46: 50
A48: 2.1.2.9 | C48: Finishing
C49: a) | D49: Reinstate 30mm asphalt surfacing | E49: m² | F49: 160
A51: 2.1.3 | B51: SABS | C51: PIPE BEDDING
A52: 2.1.3.1 | B52: 1200LB | C52: Provision of bedding from trench excavations
C53: a) | D53: Selected Granular Material | E53: m³ | F53: =CEILING(F18*0.7*0.18,5) -> 4,195
B55: 8.2.2.2 | C55: b) | D55: Selected fill material | E55: m³ | F55: =CEILING(F18*0.7*0.38,5) -> 8,855
A60: TOTAL CARRIED FORWARD
A61: =+A$1 -> Capricon District Municipality
A62: =+A$2 -> KROMHOEK (MAKGATHO) DEVREDE TAAIBOSCH NEW STANDS (CONTRACT B) WATER SUPPLY
A63: =+A$3 -> SCHEDULE 2 : RETICULATION
A65: ITEM | B65: PAYMENT | C65: DESCRIPTION | E65: UNIT | F65: QUANTITY | G65: RATE | H65: AMOUNT
A66: NO. | B66: REFER.
A67: Brought Forward
A68: 2.1.4 | B68: SABS 1200L | C68: uPVC PRESSURE PIPE AND PIPE FITTINGS
A69: 2.1.4.1 | B69: 8.2.1 | C69: Supply, lay, bed and test the following uPVC pressure
C70: pipes (conforming with SABS 966-1976 specifications)
C71: in 6m lengths each pipe fitted at one end with socket
C72: for Mechanical jointing, in the following diameters : | J72: Hydes
C73: a) | D73: 75mm dia Class 9 | E73: m | F73: 14,800 | J73: R467.00 | K73: =J73/6 -> R77.83 | L73: 14000
C74: b) | D74: 90mm dia Class 9 | E74: m | F74: 5,500 | J74: R653.00 | K74: =J74/6 -> R108.83 | L74: 8000
C75: c) | D75: 110mm dia Class 9 | E75: m | F75: 6,200 | J75: R790.00 | K75: R131.67 | L75: 5000
C76: d) | D76: 160mm dia Class 9 | E76: m | F76: 3,400 | J76: R932.00 | K76: R155.33
C77: e) | D77: 200mm dia Class 9 | E77: m | F77: =3400*0.6 -> 2,040 | J77: R1,512.00 | K77: R252.00
C78: f) | D78: 250mm dia Class 9 | E78: m | F78: 90 | J78: R2,434.00 | K78: R405.67
A80: 2.1.4.2 | C80: FITTINGS AND SPECIALS FOR FIXING ONTO uPVC PIPES | K80: =SUM(F73:F78) -> 32,030 | L80: =SUM(L73:L78) -> 27000 | M80: =K80-L80 -> 5,030
C81: Fittings to be suitable for coupling directly (mechanically)
C82: onto pipes. Each fitting socketed for mechanical jointing.
C83: Fittings for PVC Class 9 (unless otherwise specified)
C84: Fittings to be of PVC, Cast Iron or epoxy coated steel.
C85: Fittings
C86: a) | D86: Tee`s | J86: Hydes
C87: (i) | D87: 250mm Equal T | E87: No | F87: 2 | J87: R1,950.00
C88: (ii) | D88: 160mm Equal T | E88: No | F88: 3 | J88: R1,200.00
C89: (iii) | D89: 160mm x 90mm T | E89: No | F89: 1 | J89: R1,050.00
C90: (iv) | D90: 110mm Equal T | E90: No | F90: 12 | J90: R1,000.00
C91: (v) | D91: 110mm x 90mm T | E91: No | F91: 15 | J91: R690.00
C92: (vi) | D92: 110mm x 75mm T | E92: No | F92: 11 | J92: R690.00
C93: (vii) | D93: 90mm Equal T | E93: No | F93: 14 | J93: R750.00
C94: (viii) | D94: 90mm x 75mm T | E94: No | F94: 11 | J94: R620.00
C95: (ix) | D95: 75mm Equal T | E95: No | F95: 13 | J95: R610.00
I96: =SUM(H87:H95) -> 0
C97: b) | D97: Cross's
C98: (i) | D98: 90mm Equal cross | E98: No | F98: 10
C99: (ii) | D99: 90mm x 75mm cross | E99: No | F99: 4
C100: (iii) 110mm x 75mm Reducing Tee | D100: 75mm Equal cross | E100: No | F100: 3
C102: c) | D102: Reduccers
C103: (i) | D103: 250mm x 160mm | E103: No | F103: 1
C104: (ii) | D104: 200mm x 160mm | E104: No | F104: 3
C105: (iii) | D105: 160mm x 110mm | E105: No | F105: 1
C106: (iv) | D106: 110mm x 90mm | E106: No | F106: 5
C107: (v) | D107: 110mm x 75mm | E107: No | F107: 2 | I107: =SUM(H103:H107) -> 0
C108: (v) | D108: 90mm x 75mm | E108: No | F108: 24
C110: d) | D110: uPVC Long radius bends
C111: (i) | D111: 90 Deg. 200mm dia | E111: No | F111: 1
C112: (ii) | D112: 90 Deg. 110mm dia. | E112: No | F112: 7
C113: (iii) | D113: 90 Deg. 90mm dia. | E113: No | F113: 24
C114: (iv) | D114: 90 Deg. 75mm dia. | E114: No | F114: 14
C115: (v) | D115: 45 Deg. 160mm dia. | E115: No | F115: 2
C116: (vi) | D116: 45 Deg. 110mm dia. | E116: No | F116: 3
C117: (vii) | D117: 45 Deg. 90mm dia. | E117: No | F117: 2
C118: (viii) | D118: 45 Deg. 75mm dia. | E118: No | F118: 10 | I118: =SUM(H111:H118) -> 0
A120: TOTAL CARRIED FORWARD
A121: =+A$1 -> Capricon District Municipality
A122: =+A$2 -> KROMHOEK (MAKGATHO) DEVREDE TAAIBOSCH NEW STANDS (CONTRACT B) WATER SUPPLY
A123: =+A$3 -> SCHEDULE 2 : RETICULATION
A125: ITEM | B125: PAYMENT | C125: DESCRIPTION | E125: UNIT | F125: QUANTITY | G125: RATE | H125: AMOUNT
A126: NO. | B126: REFER.
A127: Brought Forward
C128: (ix) | D128: 22,5 Deg. 110mm dia. | E128: No | F128: 4
C129: (x) | D129: 22,5 Deg. 90mm dia. | E129: No | F129: 8
C130: (xi) | D130: 22,5 Deg. 75mm dia. | E130: No | F130: 13
C131: (xii) | D131: 11.5 Deg. 250mm dia. | E131: No | F131: 2
C132: (xiii) | D132: 11.5 Deg. 200mm dia. | E132: No | F132: 1
C133: (xiv) | D133: 11.5 Deg. 160mm dia. | E133: No | F133: 5
C134: (xv) | D134: 11.5 Deg. 110mm dia. | E134: No | F134: 3
C135: (xvi) | D135: 11.5 Deg. 90mm dia. | E135: No | F135: 7
C136: (xvii) | D136: 11,5 Deg. 75mm dia. | E136: No | F136: 18
C138: e) | D138: CI End Cap for uPVC pipes
C139: (i) | D139: 90mm dia. | E139: No | F139: 4
C140: (ii) | D140: 75mm dia. | E140: No | F140: 1
C142: f) | D142: CI Reducer for uPVC pipes
C143: (i) | D143: 200mm x 160mm | E143: No | F143: 1
C144: (ii) | D144: 160mm x 63mm | E144: No | F144: 50
C145: (iii) | D145: 160mm x 75mm | E145: No | F145: 1
C146: (iv) | D146: 75mm x 63mm | E146: No | F146: 4
C148: g) | D148: Double Socket for uPVC pipes
C149: (i) | D149: 200mm dia. | E149: No | F149: 5 | H149: Rate only
C150: (ii) | D150: 160mm dia. | E150: No | F150: 5 | H150: Rate only
C151: (iii) | D151: 75mm dia. | E151: No | F151: 5 | H151: Rate only
C153: h) | D153: RSV Gate Valves with non rising spindle, cap top.
D154: Supply and install complete as per detail the
D155: following Gate valves. Incl. Valve box.
C156: (i) | D156: 200mm dia. | E156: No | F156: 1
C157: (ii) | D157: 160mm dia. | E157: No | F157: 20
C158: (ii) | D158: 75mm dia. | E158: No | F158: 4
C159: (iii) | D159: 63mm dia | E159: No | F159: 10
C161: i) | D161: Cut into and connect to existing mains, install VJ flange
D162: coupling to suit the following
C163: (i) | D163: 200mm dia uPVC | E163: No | F163: 1
C164: (ii) | D164: 160mm dia uPVC | E164: No | F164: 1
C165: (iii) | D165: 110mm dia uPVC | E165: No | F165: 1
C167: j) | D167: Pipeline markers - as per standard drawings | E167: No | F167: =CEILING(F18/250,5) -> 135
C169: k) | D169: Supply and construct 25mm dia air valves (Ventomat type)
D170: completed with manhole, covers and all fittings - as
D171: per DWAF details
C172: (i) | D172: 160mm dia | E172: No | F172: 10 | H172: Rate Only
C173: (ii) | D173: 110mm dia | E173: No | F173: 6
C175: l) | D175: Supply and construct 50mm dia air valves (Ventomat type)
D176: completed with manhole, covers and all fittings - as per
D177: DWAF details
C178: (i) | D178: 160mm dia | E178: No | F178: 0 | H178: Rate Only
C179: (ii) | D179: 110mm dia | E179: No | F179: 5
A180: TOTAL CARRIED FORWARD
A181: =+A$1 -> Capricon District Municipality
A182: =+A$2 -> KROMHOEK (MAKGATHO) DEVREDE TAAIBOSCH NEW STANDS (CONTRACT B) WATER SUPPLY
A183: =+A$3 -> SCHEDULE 2 : RETICULATION
A185: ITEM | B185: PAYMENT | C185: DESCRIPTION | E185: UNIT | F185: QUANTITY | G185: RATE | H185: AMOUNT
A186: NO. | B186: REFER.
A187: Brought Forward
C188: m) | D188: Supply and construct scour valves
D189: complete with manhole, covers and all fittings - as
D190: per DWAF details
C191: (i) | D191: 110 mm dia | E191: No | F191: 5
C193: n) | D193: Disconnect Unauthorised connections on the Existing | E193: Prov | F193: Sum
D194: Pipe Line and repair the pipe. (Rate to include for
D195: supply and install of all materials to restore
D196: the pipe)
C198: 0) | D198: EO item n above for handling charges | E198: % | F198: =H193 -> 0
C200: p) | D200: Supply and install CI saddles with 25mm BSP outlet for
D201: uPVC pipes of diameter of (for house connections)
C202: i) | D202: 200mm | E202: No | F202: 3
C203: ii) | D203: 160mm | E203: No | F203: 39
C204: iii) | D204: 110mm | E204: No | F204: 87
C205: iv) | D205: 90mm | E205: No | F205: 453
C206: v) | D206: 75mm | E206: No | F206: 452
C208: q) | D208: 25mm dia HDPE class 6 pipe for long connections | E208: m | F208: 5,500
A210: 2.1.5 | C210: MISCELLANEOUS
C211: Concrete thrust block configuration.
A212: 2.1.5.1 | B212: L.I. | C212: a) | D212: Concrete volume < 0,5m³ (Provisional) | E212: m³ | F212: 75
A214: 2.1.6 | B214: SABS | C214: STANDPIPES
B215: 1200LF
B216: L.I. | C216: a) | D216: Supply handle and install yard connection pipes
D217: complete including all fittings,concrete work and
D218: two SABS approved taps with hose connection
D219: as per detail drawings | E219: No | F219: 1,950
C220: b) | D220: Supply all Materials and fittings required for the
D221: installation of domestic water meters ( saddle and 25mm HDPE pipe measured elsewhere) | E221: No | F221: 1,950
A223: 2.1.7 | B223: 8.3.6 | C223: Submit as-built drawings of all existing services and
C224: adjustments to Construction drawings before
C225: submission of final payment certificate | E225: sum | F225: 1
A239: TOTAL CARRIED FORWARD TO SUMMARY

Sheet ELEVATED TANK
A1: ='P&G'!A1 -> Capricon District Municipality
A2: ='P&G'!A2 -> KROMHOEK (MAKGATHO) DEVREDE TAAIBOSCH NEW STANDS (CONTRACT B) WATER SUPPLY
A3: SCHEDULE 3 : ELEVATED STEEL TANK
A5: ITEM | B5: PAYMENT | C5: DESCRIPTION | D5: UNIT | E5: QUANTITY | F5: RATE | G5: AMOUNT
A6: NO. | B6: REFER.
A8: D | B8: PET | C8: ELEVATED STEEL TANK
A10: C.1 | C10: ELEVATED STEEL TANK 18m STAND
C11: Allow for all materials for the tank and 18m stand
A12: C.1.1 | B12: PSA 8.5(e)1 | C12: a) Elevated tank (464m³) | D12: Sum | E12: 2
A15: C.2 | C15: ANCILLARY WORKS
A17: C.2.1 | C17: Transport and offloading on site of the tank & stand materials | D17: Sum | E17: 1
A19: C.3 | C19: LIGHTINING PROTECTION
A21: C.3.1 | C21: Specialist sub-contractor for lightning protection | D21: Sum | E21: 2
A23: C.4 | B23: SABS 1200C | C23: SITE CLEARANCE
A25: C.4.1 | B25: 8.2.1 | C25: Clear & grub vegetation & smaller trees up to 1m girth | D25: m2 | E25: 1500
A27: C.5 | B27: SABS 1200D | C27: EARTHWORKS FOR FOUNDATIONS
A29: C.5.1 | B29: 8.3.2 (a) | C29: Excavate in all materials and dispose excess material | D29: m³ | E29: 30
A31: C.6 | C31: MISCELLANEOUS
A32: C.6.1 | C32: Allow for the filling of the tank once with clean water for testing purpose | D32: No | E32: 2
A34: C.6.2 | B34: 8.3.4 | C34: Supply 150g of Calcium Hyperchloride per m³ of water for sterilising the elevated tank | D34: kg | E34: 650
A36: C.7 | C36: SCOUR
A38: C.7.1 | C38: 80mm Ø GMS Flange threaded inside | D38: No. | E38: 2
A40: C.7.2 | C40: 80mm Ø GMS Barrel nipple, 100mm long, threaded both sides | D40: No. | E40: 2
A42: C.7.3 | C42: 80mm Ø GMS Barrel nipple, 100mm long, threaded one side | D42: No. | E42: 2
A44: C.7.4 | C44: 800MM Ø Brass fullway gate valve | D44: No. | E44: 2
A46: C.8 | C46: OVERFLOW
A48: C.8.1 | C48: 100mm Ø GMS pipe, 100mm long, flanged one end | D48: No. | E48: 2
A50: C.9 | C50: INLET PIPE
C51: Supply delivery and installation of all pipes for the inlet pipes, comprising of pipes, fittings, jointing, materials, gaskets, bolts, etc as for complete installation (All pipes (See detailed drawings for items listed below hot dip galvanised)
C52: Item (To SABS 1123, Table 1600/3)
A55: TOTAL CARRIED FORWARD
A56: =+A$1 -> Capricon District Municipality
A57: =+A$2 -> KROMHOEK (MAKGATHO) DEVREDE TAAIBOSCH NEW STANDS (CONTRACT B) WATER SUPPLY
A58: =+A$3 -> SCHEDULE 3 : ELEVATED STEEL TANK
A60: ITEM | B60: PAYMENT | C60: DESCRIPTION | D60: UNIT | E60: QUANTITY | F60: RATE | G60: AMOUNT
A61: NO. | B61: REFER.
A62: Brought Forward
A63: C.9.1 | C63: a 100mm Ø Aqualok flange adaptor | D63: No. | E63: 2
A65: C.9.2 | C65: b 100mm Ø Pipe GMS section (1750mm long) FOE | D65: No. | E65: 2
A67: C.9.3 | C67: c 100mm Ø GMS long radius bend FBE | D67: No. | E67: 4
A69: C.9.4 | C69: d 100mm Ø Pipe GMS section (6036mm long, FTF) | D69: No. | E69: 4
A71: C.9.5 | C71: e 100mm Ø Pipe GMS secton (2085mm long, FTF) | D71: No. | E71: 4
A73: C.10 | C73: OUTLET PIPE
C74: Item (SABS 1123, Table 1600/3)
A76: C.10.1 | C76: a 150mm Ø Aqualok flanfe adaptor | D76: No. | E76: 2
A78: C.10.2 | C78: b 150mm Ø Pipe GMS section (1750mm long) FOE | D78: No. | E78: 2
A80: C.10.3 | C80: c 150mm Ø GMS long radius bend FBE | D80: No. | E80: 4
A82: C.10.4 | C82: d 150mm Ø Pipe GMS section (6036mm long, FTF) | D82: No. | E82: 2
A84: C.10.5 | C84: e 150mm Ø Pipe GMS secton (2085mm long, FTF) | D84: No. | E84: 2
A86: C.11 | B86: SABS 1200G | C86: CONCRETE (STRUCTURAL)
A88: C.11.1 | B88: 8.2 | C88: SCHEDULE FORMWORK ITEMS
B90: 8.2.1 | C90: Rough surface finish (vertical) | D90: m2 | E90: 10
B92: 8.2.2 | C92: Smooth surface finish (vertical) | D92: m2 | E92: 10
A94: C.11.2 | B94: 8.3 | C94: SCHEDULE REINFORCEMENT ITEMS
B96: 8.3.1 | C96: a) Mild steel bars | D96: t | E96: 0.5
C97: b) High-tensile steel bars | D97: t | E97: 1
A99: C.11.3 | B99: 8.4 | C99: SCHEDULE CONRETE ITEMS
B101: 8.4.1 | C101: Blinding layer in foundation concrete
B103: 8.4.2 | C103: Minimum 75mm thickness, 20mPa/19mm grade | D103: m2 | E103: 50
B105: 8.4.3 | C105: Strength concrete, 30MPa/19mm | D105: m³ | E105: 24
A107: C.12 | B107: SABS 1200H | C107: STRUCTURAL STEELWORK
A109: C.12.1 | B109: 8.3.4 | C109: SCHEDULED ERECTION BOLTS ITEMS
C111: Supply, deliver and install M24 HD bolts, 100mm long, including washers and nuts, complete as per detailed drawings | D111: No. | E111: 150
A113: TOTAL CARRIED FORWARD

Sheet PUMPS
A2: =RETICULATION!A61 -> Capricon District Municipality
A3: =RETICULATION!A62 -> KROMHOEK (MAKGATHO) DEVREDE TAAIBOSCH NEW STANDS (CONTRACT B) WATER SUPPLY
A5: SCHEDULE VC: WATER SUPPLY AND NETWORK DISTRIBUTION WORKS
A6: SCHEDULE 4: PUMPS
A8: ITEM | B8: PAYMENT | C8: DESCRIPTION | D8: UNIT | E8: QUANTITY | F8: RATE | G8: AMOUNT
A9: NO. | B9: REFER.
A10: SANS 1200D | C10: PUMPS
C11: (As specified in the Project Specifications.)
A13: 4.1 | B13: PS VC 10 | C13: Supply and Installation of Pumps
A14: 4.1.2 | B14: PS VC 10.1 | C14: Supply, deliver, Install,commission,comissioning and maintanance (during
C15: defect liability period) of positive displacement pumps complete with
C16: acceseries
B18: i) | C18: BOREHOLE H26-0830 (Yield=2.5 l/s,depth=85m)
C19: BOREHOLE H26-0833 (Yield=2.5 l/s,depth=85m)
C20: a) BP 10M Element complete with:15x65mm columns,30xbobbin
C21: bearings,5xstabilisers,30 line shafts,complete head, vee belts,taper
C22: mount bracket e.t.c. | D22: NO | E22: 2
B24: ii) | C24: BOREHOLE H26-0829 (Yield=3.5 l/s,depth=85m)
C25: 4 New BOREHOLE (Yield=3.5 l/s,depth=85m)
C26: a) BP16M Element complete with:15x65mm columns, 50x16x4 bobbin
C27: bearings,5xstabilisers,30 line shafts,complete head, vee belts,taper
C28: mount bracket e.t.c. | D28: NO | E28: 3
B30: PS VC 10.2 | C30: Supply, deliver, Install,commission,comissioning and maintanance (during
C31: defect liability period) of a three phase Electrical motor 4-pole foot mount
C32: complete with taper lock,vee belts and pulley
C33: a) 11kw | D33: No | E33: 3
C34: b) 7.5kw | D34: No | E34: 2
B36: PS VC 10.3 | C36: Design,fabricate and install delivery maniford as detailed on the delivery pipework
C37: maniford drawing to DWA specs including 2xgate valves,pressure
C38: swith,flow switch,water meter,non return valve,galvernised pipes etc
C39: a) 65mm pipework | D39: No | E39: 3
C40: b) 50mm pipework | D40: No | E40: 2
A42: 4.1.4 | B42: PS VC 10.4 | C42: Compile, Supply and delivery a complete set of operation and maintenance
C43: manuals of all pumps as specified and measured above | D43: Prov Sum | E43: 1
A45: 4.1.5 | C45: Design, manufacture, supply, delivery, installation, testing, commissioning
C46: and maintenance for a 12 month period of a DWA spec control box for
C47: borehole automation including probes | D47: No | E47: 5
A49: 4.1.6 | C49: Eskom Transformers
C50: (a) Provisional sum for application of Eskom transformers for 4 boreholes | D50: Prov Sum | E50: 5 | F50: 92,910.95 | G50: =E50*F50 -> 464,554.75
C51: Contractor's handling costs, profit and all other charges in respect of
C52: item 4.1.6 | D52: % | E52: =G50 -> 464,554.75
A54: 4.2 | B54: PS VC 4.2 | C54: Supply and erect fence
A55: 4.2.1 | C55: Supply and Installation of concrete palisade fence (36m per borehole) as
C56: specified on the drawing | D56: no | E56: 5
A58: 4.2.2 | C58: Palisade steel gate 2,4 x 6m as per drawing | D58: no | E58: 5
A60: 4.3 | B60: PS PME 4.2.3 | C60: Pump House
A61: 4.3.1 | C61: Erect pre-fabricated reinforced concrete pump house
C62: complete with locking device as per drawing. | D62: no | E62: 5
B64: PS PME 4.2.4 | C64: Existing Equipment
C65: Take out existing borehole equipment, clean and
C66: store on site. Rust prevention fluid to be put on all
C67: sockets and threads. | D67: no | E67: 2
A69: 2.1.7 | B69: 8.3.6 | C69: Water package treatment plant for water from 2 boreholes
C70: Pipework, Raw water tanks, 12m refurbished Container with
C71: the complete RO plant consisting of; disinfection system,
C72: Fine filtration 5-10micron, 24x 200mm dia membrane vessels
C73: on a skid, pumps and dosing pumps, dosing facilities by Selected contractor | D73: Prov Sum | E73: 1 | F73: 1,898,816.65 | G73: =F73 -> R1,898,816.65
B75: 1.4.3 | C75: Handling cost and profit in respect of item 2.1.7 | D75: % | E75: =F73 -> R1,898,816.65
A77: TOTAL SCHEDULE 4 - CARRIED TO SUMMARY:

Sheet SUMMARY BOQ
A2: CAPRICORN DISTRICT MUNICIPALITY
A4: KROMHOEK (MAKGATHO) DEVREDE TAAIBOSCH NEW STANDS (CONTRACT B) WATER SUPPLY
A6: PROJECT NUMBER : INF- W29/2022/2023
A8: SUMMARY OF SCHEDULES
A10: ESTIMATED CONSTRUCTION FEE
A12: SCHEDULE 1 : | B12: PRELIMINARY AND GENERAL
A14: SCHEDULE 2 : | B14: RETICULATION
A16: SCHEDULE 3 : | B16: STEEL ELAVATED TANK
A18: SCHEDULE 4 : | B18: PUMPS & PUMP HOUSE
A21: SUB - TOTAL 1
A25: Provide the sum of 10% of Total 1 for contingencies to be used at the discretion of the
A43: SUB - TOTAL 2
A45: ADD 15% VAT
A47: TOTAL CONTRACT AMOUNT
